bitfinex-derivatives/quotes_SOLF0:USTF0_20250603
["timestamp","ask_amount","ask_price","bid_price","bid_amount"]
[1748979517426,0.04727978,160.79,160.75,0.03960313]
[1748979519028,0.04727978,160.79,160.75,7.71902678]
[1748979519230,0.04727978,160.79,160.76,10.73097043]
[1748979519626,0.04727978,160.79,160.78,6.216]
[1748979521530,0.04727978,160.79,160.78,16.94697043]
[1748979523530,33.419,160.85,160.78,10.73097043]
[1748979523531,31.28,160.85,160.78,10.73097043]
[1748979523831,31.28,160.85,160.77,31.3]
[1748979523832,6.2153,160.8,160.77,49.71039408]
[1748979524033,6.2153,160.8,160.77,48.24717043]
[1748979524433,6.26279791,160.8,160.77,48.29112182]
[1748979524822,6.26279791,160.8,160.78,6.2159]
[1748979525627,6.26279791,160.8,160.77,6.26015139]
[1748979525930,6.2157,160.79,160.77,6.26015139]
[1748979527128,6.216,160.78,160.77,0.04395139]
[1748979529227,2.15599791,160.8,160.77,0.04395139]
[1748979529432,0.04749791,160.8,160.77,0.04395139]
[1748979529933,6.216,160.79,160.77,0.04395139]
[1748979531331,0.04749791,160.8,160.78,10.73097043]
[1748979531923,0.04749791,160.8,160.79,6.2157]
[1748979534534,0.04749791,160.8,160.78,16.94687043]
[1748979534742,0.04749791,160.8,160.77,0.04395139]
[1748979535634,6.2159,160.79,160.77,6.26035139]
[1748979539334,0.04749791,160.8,160.77,0.04395139]
[1748979540036,6.2158,160.79,160.77,6.26035139]
[1748979540835,6.2161,160.78,160.77,0.04395139]
[1748979543237,0.04749791,160.8,160.77,0.04395139]
[1748979543635,0.04749791,160.8,160.79,6.2157]
[1748979544036,0.04749791,160.8,160.79,16.94667043]
[1748979547636,0.04749791,160.8,160.77,49.63434547]
[1748979547841,0.04749791,160.8,160.77,41.95492182]
[1748979548042,0.04749791,160.8,160.77,31.22395139]
[1748979548240,0.04749791,160.8,160.77,0.04395139]
[1748979548833,0.04749791,160.8,160.78,10.73097043]
[1748979549040,0.04749791,160.8,160.79,6.2157]
[1748979559757,0.04749791,160.8,160.78,6.2159]
[1748979562763,0.04749791,160.8,160.77,0.04395139]
[1748979563861,10.73097043,160.79,160.77,0.04395139]
[1748979564161,6.2161,160.78,160.77,0.04395139]
[1748979567663,16.94707043,160.78,160.77,0.04395139]
[1748979571972,12.4961,160.79,160.77,0.04395139]
[1748979572663,6.2161,160.78,160.77,0.04395139]
[1748979573661,12.4961,160.79,160.77,0.04395139]
[1748979574264,6.2802,160.79,160.77,0.04395139]
[1748979574465,37.72299791,160.8,160.77,0.04395139]
[1748979574670,31.50749791,160.8,160.77,0.04395139]
[1748979575163,6.2158,160.79,160.77,0.04395139]
[1748979577875,6.2161,160.78,160.77,0.04395139]
[1748979580471,37.72279791,160.8,160.77,0.04395139]
[1748979581478,31.50749791,160.8,160.77,0.04395139]
[1748979581674,10.73097043,160.79,160.77,0.04395139]
[1748979582272,6.2161,160.78,160.77,0.04395139]
[1748979596684,6.2161,160.78,160.69,5.76686337]
[1748979596685,10.73097043,160.78,160.69,5.76686337]
[1748979596890,10.73097043,160.74,160.67,47.9178338]
[1748979597082,42.15097043,160.74,160.67,47.9178338]
[1748979597282,31.42,160.74,160.67,47.9178338]
[1748979597588,37.9473,160.77,160.71,16.94957043]
[1748979597785,0.04536114,160.76,160.72,0.04038097]
[1748979599790,6.2173,160.75,160.72,0.04038097]
[1748979600791,0.04536114,160.76,160.72,0.04038097]
[1748979601094,0.04536114,160.76,160.75,6.2173]
[1748979601693,0.04536114,160.76,160.74,6.2175]
[1748979611902,0.04536114,160.76,160.72,16.55301194]
[1748979612599,0.04536114,160.76,160.75,6.2173]
[1748979621093,0.04536114,160.76,160.75,11.99954944]
[1748979622008,0.04536114,160.76,160.75,11.997148]
[1748979624200,0.04536114,160.76,160.75,6.2173]
[1748979624505,0.04536114,160.76,160.75,11.997148]
[1748979626206,0.04536114,160.76,160.75,11.99634032]
[1748979628503,0.04536114,160.76,160.74,10.73097043]
[1748979628504,31.44,160.83,160.79,6.2157]
[1748979628899,6.2147,160.82,160.79,6.2157]
[1748979629101,31.44,160.83,160.79,10.73097043]
[1748979629503,0.04658037,160.83,160.81,10.73097043]
[1748979629899,0.04658037,160.83,160.82,6.2146]
[1748979630103,0.04658037,160.83,160.81,10.73097043]
[1748979630507,0.04658037,160.83,160.81,16.94577043]
[1748979630908,0.04658037,160.83,160.82,6.2146]
[1748979632105,0.04658037,160.83,160.79,5.81097874]
[1748979632106,0.04658037,160.83,160.8,10.73097043]
[1748979632311,10.7775508,160.83,160.79,0.03930587]
[1748979632515,6.2154,160.8,160.79,0.03930587]
[1748979632717,10.73097043,160.81,160.74,5.77167287]
[1748979633517,42.17097043,160.82,160.76,6.2166]
[1748979633716,0.04685154,160.79,160.76,0.04397959]
[1748979634107,0.04685154,160.79,160.77,6.2166]
[1748979634304,0.04685154,160.79,160.76,0.04397959]
[1748979634506,6.26275154,160.79,160.76,0.04397959]
[1748979634814,0.04685154,160.79,160.76,0.04397959]
[1748979635015,6.2166,160.77,160.76,0.04397959]
[1748979637912,6.2163,160.78,160.76,0.04397959]
[1748979639211,0.04685154,160.79,160.76,0.04397959]
[1748979639811,6.26275154,160.79,160.77,6.2163]
[1748979640416,6.26275154,160.79,160.76,6.26077959]
[1748979640617,0.04685154,160.79,160.76,0.04397959]
[1748979640814,0.04685154,160.79,160.78,6.2162]
[1748979641926,35.7047,160.85,160.8,6.2153]
[1748979642213,35.7047,160.85,160.8,16.94627043]
[1748979642422,35.7047,160.85,160.81,6.215]
[1748979642817,35.7047,160.85,160.81,0.04253704]
[1748979643023,35.75052149,160.85,160.82,6.2147]
[1748979643414,6.2139,160.84,160.82,6.2147]
[1748979644126,6.2139,160.84,160.81,6.25743704]
[1748979645621,6.2143,160.83,160.81,6.25743704]
[1748979645923,6.2143,160.83,160.81,0.04253704]
[1748979646119,35.75052149,160.85,160.81,0.04253704]
[1748979646328,6.2145,160.83,160.81,0.04253704]
[1748979647021,16.94567043,160.82,160.81,0.04253704]
[1748979648016,6.2147,160.82,160.81,0.04253704]
[1748979662341,6.2166,160.77,160.75,5.77065878]
[1748979662842,10.73097043,160.79,160.74,5.77508694]
[1748979663037,10.73097043,160.79,160.72,48.16605737]
[1748979663240,0.04692247,160.77,160.74,0.04040102]
[1748979663842,6.26372247,160.77,160.74,6.25800102]
[1748979665640,6.2171,160.76,160.74,6.25800102]
[1748979665836,6.2171,160.76,160.74,0.04040102]
[1748979666039,6.2174,160.75,160.74,0.04040102]
[1748979668135,6.2184,160.73,160.69,16.51057293]
[1748979668336,10.73097043,160.75,160.71,6.2189]
[1748979668639,10.73097043,160.75,160.69,16.51057293]
[1748979668640,6.218,160.74,160.69,16.51057293]
[1748979668840,10.73097043,160.75,160.69,16.51057293]
[1748979669033,10.73097043,160.75,160.71,6.2188]
[1748979669237,6.2181,160.74,160.71,6.26263365]
[1748979670433,10.77828997,160.75,160.71,0.04383365]
[1748979671447,6.2186,160.72,160.71,0.04383365]
[1748979672143,42.41097043,160.73,160.65,5.77446121]
[1748979672445,10.73097043,160.71,160.63,43.67646121]
[1748979672644,10.73097043,160.69,160.63,5.77446121]
[1748979672848,10.73097043,160.67,160.6,18.65003164]
[1748979673045,0.03933326,160.65,160.63,6.2221]
[1748979673253,0.03933326,160.65,160.62,10.77837035]
[1748979673254,0.03933326,160.65,160.62,0.04739992]
[1748979673552,0.03933326,160.65,160.62,6.26959992]
[1748979673736,0.03933326,160.65,160.62,0.04739992]
[1748979674139,0.03933326,160.65,160.63,6.2221]
[1748979674335,0.03933326,160.65,160.63,10.73097043]
[1748979674538,33.6914,160.72,160.64,10.73097043]
[1748979674849,544.9022184,160.79,160.7,10.73097043]
[1748979674850,35.8636,160.76,160.7,10.73097043]
[1748979675048,46.59457043,160.76,160.7,10.73097043]
[1748979675242,6.2179,160.74,160.69,10.73097043]
[1748979675648,0.04322544,160.73,160.71,10.73097043]
[1748979675949,0.04322544,160.73,160.72,6.2183]
[1748979676244,0.04322544,160.73,160.71,10.73097043]
[1748979677351,0.04322544,160.73,160.72,6.2186]
[1748979680250,31.68,160.83,160.71,42.41097043]
[1748979680553,10.73097043,160.81,160.74,10.73097043]
[1748979680846,35.7835,160.83,160.74,10.73097043]
[1748979681047,35.7835,160.83,160.78,10.73097043]
[1748979681048,31.68,160.83,160.78,10.73097043]
[1748979681249,0.04301818,160.82,160.79,0.04262289]
[1748979681948,0.04301818,160.82,160.81,6.2151]
[1748979683255,0.04301818,160.82,160.8,6.2153]
[1748979683653,0.04301818,160.82,160.79,0.04262289]
[1748979685265,6.25781818,160.82,160.79,6.25842289]
[1748979685963,0.04301818,160.82,160.79,6.25842289]
[1748979686156,0.04301818,160.82,160.79,10.77359332]
[1748979686865,0.04301818,160.82,160.8,6.2155]
[1748979688559,6.25781818,160.82,160.79,10.77359332]
[1748979688754,6.25781818,160.82,160.79,0.04262289]
[1748979689158,6.25781818,160.82,160.79,6.25842289]
[1748979690367,6.2153,160.81,160.79,0.04262289]
[1748979691254,0.04301818,160.82,160.79,0.04262289]
[1748979691654,6.2154,160.81,160.79,0.04262289]
[1748979692363,6.2155,160.8,160.79,0.04262289]
[1748979693058,6.2152,160.81,160.79,0.04262289]
[1748979696065,6.25781818,160.82,160.79,0.04262289]
[1748979696968,0.04301818,160.82,160.8,6.2152]
[1748979697466,0.04301818,160.82,160.81,6.2151]
[1748979698161,31.68,160.86,160.84,6.2137]
[1748979698354,33.7027,160.89,160.84,6.2137]
[1748979698654,6.213,160.87,160.84,6.2137]
[1748979699167,0.04299674,160.87,160.84,0.0477624]
[1748979699559,10.77396717,160.87,160.84,0.0477624]
[1748979699762,6.2135,160.85,160.84,6.24e-05]
[1748979699962,37.8335,160.85,160.84,6.24e-05]
[1748979701468,48.56447043,160.85,160.84,6.24e-05]
[1748979702058,50.70667043,160.85,160.84,6.24e-05]
[1748979704370,37.8335,160.85,160.84,6.24e-05]
[1748979704670,0.04299674,160.87,160.84,6.24e-05]
[1748979706271,6.2132,160.86,160.84,6.2138624]
[1748979706472,6.2132,160.86,160.84,6.24e-05]
[1748979708169,6.2135,160.85,160.84,6.24e-05]
[1748979708370,16.94447043,160.85,160.84,6.24e-05]
[1748979708773,6.2135,160.85,160.84,6.24e-05]
[1748979709871,0.04299674,160.87,160.84,6.24e-05]
[1748979711072,6.2134,160.86,160.84,6.24e-05]
[1748979712284,6.2135,160.85,160.84,6.24e-05]
[1748979714172,6.2132,160.86,160.84,6.24e-05]
[1748979714473,0.04299674,160.87,160.84,6.24e-05]
[1748979716676,6.2135,160.85,160.84,6.24e-05]
[1748979719979,6.2132,160.86,160.84,6.24e-05]
[1748979721478,6.2135,160.85,160.84,6.24e-05]
[1748979721872,16.94447043,160.85,160.84,6.24e-05]
[1748979732794,10.73097043,160.85,160.75,9.83849576]
[1748979732999,10.73097043,160.79,160.74,45.86309576]
[1748979733290,6.2167,160.77,160.74,43.87779576]
[1748979733691,0.04251074,160.77,160.75,6.2171]
[1748979736192,6.25911074,160.77,160.74,31.92346263]
[1748979736393,0.04251074,160.77,160.74,31.92346263]
[1748979736581,0.04251074,160.77,160.75,6.2171]
[1748979737495,6.25911074,160.77,160.74,38.14096263]
[1748979737690,0.04251074,160.77,160.74,0.04346263]
[1748979738580,6.2171,160.76,160.74,6.26116263]
[1748979738786,6.2171,160.76,160.74,0.04346263]
[1748979738991,0.04251074,160.77,160.74,0.04346263]
[1748979739190,10.77348117,160.77,160.74,0.04346263]
[1748979739497,6.2173,160.75,160.74,0.04346263]
[1748979739793,0.04251074,160.77,160.74,0.04346263]
[1748979739994,6.2172,160.76,160.74,0.04346263]
[1748979741700,6.2173,160.75,160.74,0.04346263]
[1748979750492,6.2171,160.76,160.74,0.04346263]
[1748979750692,10.77348117,160.77,160.74,0.04346263]
[1748979751301,6.2173,160.75,160.74,0.04346263]
[1748979753389,0.04251074,160.77,160.74,0.04346263]
[1748979754900,0.04251074,160.77,160.75,6.217]
[1748979755302,0.04251074,160.77,160.74,0.04346263]
[1748979755599,0.04251074,160.77,160.76,6.2169]
[1748979756499,0.04251074,160.77,160.75,6.2172]
[1748979756700,0.04251074,160.77,160.74,0.04346263]
[1748979757393,6.25911074,160.77,160.74,6.26086263]
[1748979757595,6.25911074,160.77,160.74,0.04346263]
[1748979757596,0.04251074,160.77,160.74,0.04346263]
[1748979758502,0.04251074,160.77,160.75,6.2173]
[1748979760703,0.04251074,160.77,160.75,6.2169]
[1748979760904,0.04251074,160.77,160.74,0.04346263]
[1748979761804,0.04251074,160.77,160.75,6.217]
[1748979762203,6.25911074,160.77,160.75,6.217]
[1748979762705,0.04251074,160.77,160.75,6.217]
[1748979764300,6.25911074,160.77,160.75,6.217]
[1748979767302,0.04251074,160.77,160.75,6.217]
[1748979769010,6.25921074,160.77,160.75,6.217]
[1748979769309,10.77348117,160.77,160.74,5.82255134]
[1748979769512,10.77348117,160.77,160.74,0.04346263]
[1748979769713,6.2173,160.75,160.74,0.04346263]
[1748979769907,10.77348117,160.77,160.74,0.04346263]
[1748979770112,0.04251074,160.77,160.74,0.04346263]
[1748979771016,6.2171,160.76,160.74,6.26106263]
[1748979771312,0.04251074,160.77,160.74,0.04346263]
[1748979773207,6.2169,160.76,160.74,0.04346263]
[1748979777014,6.2173,160.75,160.74,0.04346263]
[1748979783224,6.2171,160.76,160.74,6.26116263]
[1748979783633,10.77348117,160.77,160.75,6.2173]
[1748979783830,0.04251074,160.77,160.74,5.83553157]
[1748979784028,0.04251074,160.77,160.76,5.79206894]
[1748979784230,0.04251074,160.77,160.76,12.00896894]
[1748979784734,0.04251074,160.77,160.76,6.2169]
[1748979785332,6.2148,160.82,160.75,10.73097043]
[1748979785524,6.2148,160.82,160.77,5.78603736]
[1748979786228,0.04383218,160.81,160.78,0.04532265]
[1748979786431,0.04383218,160.81,160.8,6.2151]
[1748979789934,0.04383218,160.81,160.78,5.82879539]
[1748979790632,6.2154,160.8,160.78,12.04469539]
[1748979790833,6.2154,160.8,160.78,6.26122265]
[1748979791428,6.25893218,160.81,160.78,12.03783341]
[1748979792141,0.04383218,160.81,160.78,5.82193341]
[1748979793042,0.04383218,160.81,160.8,6.2154]
[1748979795332,0.04383218,160.81,160.79,5.77175712]
[1748979795540,0.04383218,160.81,160.78,0.04532265]
[1748979795738,6.2154,160.8,160.78,0.04532265]
[1748979796040,0.04383218,160.81,160.78,0.04532265]
[1748979796544,0.04383218,160.81,160.79,6.2158]
[1748979796743,0.04383218,160.81,160.78,0.04532265]
[1748979798244,10.77480261,160.81,160.78,0.04532265]
[1748979798440,6.2158,160.79,160.78,0.04532265]
[1748979801738,10.77480261,160.81,160.78,0.04532265]
[1748979801739,6.2154,160.8,160.78,6.26142265]
[1748979802247,6.2154,160.8,160.78,0.04532265]
[1748979803349,16.99000261,160.81,160.78,0.04532265]
[1748979803643,10.77480261,160.81,160.78,6.26122265]
[1748979804442,10.77480261,160.81,160.78,0.04532265]
[1748979805444,6.2157,160.79,160.78,0.04532265]
[1748979806145,6.2155,160.8,160.78,0.04532265]
[1748979806347,10.77480261,160.81,160.78,0.04532265]
[1748979806550,10.73097043,160.79,160.74,5.77322919]
[1748979806746,10.73097043,160.75,160.71,5.77851032]
[1748979806937,2.1395,160.78,160.7,5.77851032]
[1748979806938,10.73097043,160.73,160.7,5.77851032]
[1748979807142,10.73097043,160.73,160.69,5.77851032]
[1748979807447,10.73097043,160.71,160.68,5.77851032]
[1748979807648,10.73097043,160.71,160.68,0.04653232]
[1748979807649,6.2199,160.69,160.68,0.04653232]
[1748979810038,10.77578738,160.71,160.68,0.04653232]
[1748979810444,16.99498738,160.71,160.68,0.04653232]
[1748979810840,10.77578738,160.71,160.68,0.04653232]
[1748979812151,6.2196,160.7,160.68,0.04653232]
[1748979813154,6.2196,160.69,160.68,0.04653232]
[1748979813752,16.95057043,160.69,160.68,0.04653232]
[1748979817750,16.95057043,160.69,160.63,6.2216]
[1748979817751,6.2209,160.66,160.63,6.2216]
[1748979817956,10.73097043,160.67,160.6,16.49452392]
[1748979818453,10.73097043,160.67,160.65,6.2208]
[1748979819656,6.26299137,160.68,160.65,6.2208]
[1748979820655,6.2204,160.67,160.65,6.2208]
[1748979820856,0.04289137,160.68,160.65,6.2208]
[1748979821359,6.26299137,160.68,160.65,6.2208]
[1748979822653,0.04289137,160.68,160.64,10.7781449]
[1748979824053,0.04289137,160.68,160.67,6.2204]
[1748979826055,6.2183,160.73,160.68,10.73097043]
[1748979826256,10.73097043,160.75,160.68,10.73097043]
[1748979826457,10.73097043,160.75,160.69,6.2194]
[1748979826656,6.2187,160.72,160.69,6.2194]
[1748979826952,0.04287992,160.72,160.69,0.04555995]
[1748979827554,0.04287992,160.72,160.71,6.2188]
[1748979827959,0.04287992,160.72,160.69,0.04555995]
[1748979829252,0.04287992,160.72,160.71,6.2188]
[1748979829653,0.04287992,160.72,160.7,6.2191]
[1748979831560,0.04287992,160.72,160.69,6.26505995]
[1748979832067,6.26147992,160.72,160.69,6.26505995]
[1748979835361,6.2189,160.71,160.69,6.26505995]
[1748979835759,0.04287992,160.72,160.69,0.04555995]
[1748979835958,10.73097043,160.71,160.69,0.04555995]
[1748979836153,10.73097043,160.71,160.64,6.2213]
[1748979836360,10.73097043,160.69,160.64,6.2213]
[1748979836655,6.2202,160.68,160.62,16.47371162]
[1748979836854,6.2202,160.68,160.62,10.73097043]
[1748979837268,0.03960318,160.67,160.65,6.221]
[1748979840357,2.1115,160.72,160.66,10.73097043]
[1748979841158,6.2191,160.71,160.68,6.2198]
[1748979841363,0.04196903,160.71,160.68,6.26153281]
[1748979841964,0.04196903,160.71,160.69,6.2195]
[1748979843169,6.26086903,160.71,160.69,6.2195]
[1748979844162,0.04196903,160.71,160.69,6.2195]
[1748979845466,6.26086903,160.71,160.69,6.2195]
[1748979846272,6.26086903,160.71,160.68,6.26153281]
[1748979846472,6.2193,160.7,160.68,6.26153281]
[1748979847671,6.2196,160.69,160.68,0.04173281]
[1748979848283,0.04196903,160.71,160.68,0.04173281]
[1748979848667,0.04196903,160.71,160.69,10.73097043]
[1748979849370,0.04196903,160.71,160.7,6.2192]
[1748979850373,0.04196903,160.71,160.69,6.2194]
[1748979851273,0.04196903,160.71,160.69,11.99405906]
[1748979852279,0.04196903,160.71,160.7,6.2192]
[1748979852978,6.26076903,160.71,160.69,12.00477449]
[1748979853380,0.04196903,160.71,160.69,12.00477449]
[1748979854182,6.26086903,160.71,160.69,12.00477449]
[1748979855679,6.26086903,160.71,160.69,5.78527449]
[1748979856482,6.26086903,160.71,160.69,5.7839127]
[1748979856871,6.26086903,160.71,160.69,5.78394805]
[1748979857076,6.26086903,160.71,160.68,12.04548086]
[1748979859787,0.04196903,160.71,160.69,6.2195]
[1748979860283,6.26076903,160.71,160.68,12.04538086]
[1748979860678,6.26076903,160.71,160.68,12.04682386]
[1748979861082,0.04196903,160.71,160.68,12.04682386]
[1748979861277,0.04196903,160.71,160.68,5.82712386]
[1748979861592,16.95047043,160.69,160.68,0.04173281]
[1748979867481,10.73097043,160.69,160.61,5.79115249]
[1748979867678,10.73097043,160.67,160.61,5.79115249]
[1748979868181,10.73097043,160.67,160.62,6.222]
[1748979868484,0.04145585,160.66,160.63,0.04273515]
[1748979869580,6.2211,160.65,160.63,0.04273515]
[1748979870283,0.04145585,160.66,160.64,6.2214]
[1748979870482,0.04145585,160.66,160.63,0.04273515]
[1748979871083,6.26215585,160.66,160.63,12.05308997]
[1748979871283,0.04145585,160.66,160.63,6.26433515]
[1748979872390,0.04145585,160.66,160.64,6.2214]
[1748979872892,0.04145585,160.66,160.63,6.26433515]
[1748979873190,0.04145585,160.66,160.63,0.04273515]
[1748979873789,0.04145585,160.66,160.64,6.2215]
[1748979875093,0.04145585,160.66,160.65,6.2211]
[1748979875792,14.99877043,160.73,160.68,6.2199]
[1748979875994,14.99877043,160.73,160.66,5.78175002]
[1748979876196,10.73097043,160.71,160.65,12.00275002]
[1748979876594,6.2197,160.69,160.65,12.00565776]
[1748979876899,6.2197,160.69,160.65,12.05061549]
[1748979876900,6.26332589,160.69,160.65,12.05061549]
[1748979877695,6.26332589,160.69,160.66,6.2206]
[1748979878293,6.26332589,160.69,160.65,12.05051549]
[1748979879300,6.2201,160.68,160.65,12.05051549]
[1748979880206,6.2201,160.68,160.65,6.26591104]
[1748979880592,6.2201,160.68,160.65,12.05234001]
[1748979880899,6.26332589,160.69,160.66,6.2206]
[1748979881093,0.04362589,160.69,160.65,5.83144001]
[1748979881496,6.2199,160.68,160.65,6.26571104]
[1748979881695,0.04362589,160.69,160.65,0.04501104]
[1748979881899,0.04362589,160.69,160.67,6.2201]
[1748979882497,0.04362589,160.69,160.66,10.73097043]
[1748979882699,0.04362589,160.69,160.66,16.5173994]
[1748979884405,0.04362589,160.69,160.67,6.2203]
[1748979885110,0.04362589,160.69,160.68,6.2199]
[1748979885810,0.04362589,160.69,160.67,6.2201]
[1748979886512,0.04362589,160.69,160.68,6.2199]
[1748979891613,0.04362589,160.69,160.67,6.2202]
[1748979892013,0.04362589,160.69,160.67,6.2203]
[1748979892406,6.26322589,160.69,160.66,5.78533078]
[1748979892606,6.26322589,160.69,160.66,12.00583078]
[1748979892803,6.26322589,160.69,160.66,6.2205]
[1748979893112,6.26322589,160.69,160.66,12.00480283]
[1748979894313,0.04362589,160.69,160.66,5.78430283]
[1748979895911,6.26342589,160.69,160.66,5.78430283]
[1748979896717,6.26342589,160.69,160.66,12.00490283]
[1748979896914,6.26342589,160.69,160.66,12.00746959]
[1748979897514,0.04362589,160.69,160.67,6.2201]
[1748979900211,6.26322589,160.69,160.67,6.2201]
[1748979900414,0.04362589,160.69,160.67,6.2201]
[1748979900810,0.04362589,160.69,160.67,6.2203]
[1748979901014,0.04362589,160.69,160.66,5.7882055]
[1748979901221,6.26332589,160.69,160.66,5.7882055]
[1748979901420,0.04362589,160.69,160.66,5.7882055]
[1748979901723,6.2203,160.67,160.65,5.83321654]
[1748979901921,10.77459632,160.69,160.65,0.04501104]
[1748979902420,6.2207,160.66,160.65,0.04501104]
[1748979915435,6.2222,160.62,160.61,5.79442251]
[1748979915827,6.2222,160.62,160.6,12.01722251]
[1748979916022,10.73097043,160.63,160.6,5.79442251]
[1748979916430,6.2224,160.62,160.6,5.84124028]
[1748979917334,6.2224,160.62,160.6,12.06424028]
[1748979918836,6.26683301,160.63,160.6,5.84124028]
[1748979919237,6.26683301,160.63,160.61,6.2226]
[1748979919835,0.04483301,160.63,160.62,6.2222]
[1748979920338,0.04483301,160.63,160.62,22.74630316]
[1748979920534,10.73097043,160.68,160.65,6.2209]
[1748979920535,6.2201,160.68,160.65,6.2209]
[1748979920836,18.24064329,160.78,160.66,16.51998361]
[1748979921135,18.24064329,160.78,160.68,10.73097043]
[1748979921136,17.06227043,160.77,160.68,10.73097043]
[1748979921344,17.06227043,160.77,160.7,10.73097043]
[1748979921531,0.04147341,160.75,160.72,0.04311897]
[1748979922134,6.25887341,160.75,160.72,6.26121897]
[1748979922335,6.25887341,160.75,160.72,0.04311897]
[1748979922934,0.04147341,160.75,160.72,0.04311897]
[1748979923639,6.2176,160.74,160.72,0.04311897]
[1748979924337,6.218,160.73,160.72,0.04311897]
[1748979924544,0.04147341,160.75,160.72,0.04311897]
[1748979924842,6.2179,160.74,160.72,0.04311897]
[1748979925246,0.04147341,160.75,160.72,0.04311897]
[1748979925543,6.2176,160.74,160.72,0.04311897]
[1748979925739,0.04147341,160.75,160.72,0.04311897]
[1748979925941,6.218,160.73,160.72,0.04311897]
[1748979930742,10.73097043,160.73,160.65,5.77667136]
[1748979931043,10.73097043,160.68,160.62,5.78160687]
[1748979931242,10.73097043,160.68,160.61,22.7349773]
[1748979931445,10.73097043,160.68,160.61,16.5125773]
[1748979931644,10.73097043,160.68,160.62,6.222]
[1748979931839,6.2209,160.66,160.63,0.04380578]
[1748979932247,0.03966059,160.67,160.63,0.04380578]
[1748979932446,6.2211,160.65,160.63,0.04380578]
[1748979933050,0.03966059,160.67,160.63,0.04380578]
[1748979933449,6.26016059,160.67,160.64,6.2213]
[1748979935150,6.26016059,160.67,160.63,0.04380578]
[1748979935355,6.2208,160.66,160.63,0.04380578]
[1748979935547,0.03966059,160.67,160.63,6.26540578]
[1748979935956,6.2209,160.66,160.63,6.26540578]
[1748979938156,6.25996059,160.67,160.64,6.2214]
[1748979941152,6.25996059,160.67,160.65,10.73097043]
[1748979941153,0.03966059,160.67,160.65,10.73097043]
[1748979941359,12.90717043,160.76,160.65,18.43319892]
[1748979941556,6.2182,160.73,160.69,10.73097043]
[1748979941752,12.90717043,160.76,160.69,10.73097043]
[1748979942350,6.2182,160.73,160.71,0.04321032]
[1748979942750,0.04567715,160.74,160.71,0.04321032]
[1748979942944,6.26337715,160.74,160.71,6.26191032]
[1748979943352,0.04567715,160.74,160.71,0.04321032]
[1748979943752,6.2184,160.72,160.71,0.04321032]
[1748979952860,6.2184,160.72,160.71,1.032e-05]
[1748979968268,10.73097043,160.72,160.64,5.78890873]
[1748979968472,2.029,160.73,160.64,16.51987916]
[1748979968767,6.2197,160.69,160.66,6.2204]
[1748979968971,14.98997043,160.76,160.68,10.73097043]
[1748979969168,0.04626868,160.74,160.7,0.04577529]
[1748979969367,6.2181,160.73,160.7,0.04577529]
[1748979969665,0.04626868,160.74,160.72,10.73097043]
[1748979969873,0.04626868,160.74,160.73,6.218]
[1748979972784,10.73097043,160.8,160.75,6.2171]
[1748979972981,6.2164,160.78,160.75,6.2171]
[1748979973182,10.73097043,160.81,160.72,16.52151067]
[1748979973576,10.73097043,160.79,160.72,16.52151067]
[1748979973887,0.04277687,160.77,160.74,0.04738667]
[1748979974186,6.2172,160.75,160.74,0.04738667]
[1748979978576,16.94817043,160.75,160.74,8.667e-05]
[1748979981587,6.2198,160.69,160.67,5.78678019]
[1748979981793,6.2198,160.69,160.66,5.78678019]
[1748979982591,0.04089248,160.69,160.66,5.82886484]
[1748979982894,10.73097043,160.68,160.66,0.04208465]
[1748979983395,6.2203,160.67,160.66,0.04208465]
[1748979985889,6.2203,160.67,160.66,8.465e-05]
[1748979991095,6.2226,160.62,160.6,1.9887]
[1748979991296,6.2226,160.62,160.59,6.2234]
[1748979991889,6.222,160.63,160.6,6.223]
[1748979992090,6.264194,160.63,160.6,6.26598266]
[1748979992588,0.042194,160.63,160.61,6.2225]
[1748979993194,6.264094,160.63,160.61,6.2225]
[1748979993397,6.264094,160.63,160.6,6.26588266]
[1748979993592,0.042194,160.63,160.6,0.04298266]
[1748979994194,6.264294,160.63,160.6,6.26588266]
[1748979995384,6.264294,160.63,160.61,6.2226]
[1748979995583,0.042194,160.63,160.61,10.73097043]
[1748979995787,10.73097043,160.7,160.61,10.73097043]
[1748979995990,10.73097043,160.7,160.63,6.2217]
[1748979996186,6.2209,160.66,160.63,6.2217]
[1748979996791,6.26151486,160.66,160.63,6.26889019]
[1748979996997,6.26151486,160.66,160.64,6.2214]
[1748979997199,6.26151486,160.66,160.63,0.04719019]
[1748979997391,6.2212,160.65,160.63,0.04719019]
[1748979997991,6.2215,160.64,160.63,0.04719019]
[1748979999793,6.2213,160.65,160.63,0.04719019]
[1748980000093,0.04061486,160.66,160.63,0.04719019]
[1748980000300,6.26151486,160.66,160.63,6.26879019]